bitfinex-derivatives/quotes_BTCF0:USTF0_20241010
["timestamp","ask_amount","ask_price","bid_price","bid_amount"]
[1728571873761,0.082479,60679.0,60671.0,0.063]
[1728571874067,0.06,60679.0,60678.0,0.08248]
[1728571874258,0.142479,60679.0,60676.0,0.082482]
[1728571874459,0.142479,60679.0,60675.0,0.082484]
[1728571874655,0.29,60676.0,60675.0,0.082484]
[1728571874876,0.6508,60680.0,60679.0,0.082479]
[1728571875064,0.6908,60680.0,60679.0,0.082479]
[1728571875567,0.33,60680.0,60679.0,0.082479]
[1728571875755,0.0333,60687.0,60672.0,0.3608]
[1728571875756,0.29,60685.0,60672.0,0.3608]
[1728571875955,0.1,60685.0,60684.0,0.082471]
[1728571876567,0.0004,60688.0,60686.0,0.082469]
[1728571876873,0.082867,60688.0,60686.0,0.082469]
[1728571877367,0.443667,60688.0,60686.0,0.082469]
[1728571877775,0.082472,60684.0,60682.0,0.082474]
[1728571877965,0.29,60683.0,60682.0,0.082475]
[1728571879367,0.0094,60688.0,60679.0,0.3608]
[1728571879562,0.0054,60688.0,60679.0,0.3608]
[1728571879874,0.004,60683.0,60679.0,0.3608]
[1728571880171,0.004,60683.0,60682.0,0.082475]
[1728571880478,0.294,60683.0,60682.0,0.082475]
[1728571880671,0.294,60683.0,60680.0,0.082476]
[1728571880863,0.294,60683.0,60679.0,0.3608]
[1728571881062,0.082475,60682.0,60681.0,0.082476]
[1728571881261,0.202475,60682.0,60681.0,0.082476]
[1728571881465,0.12,60682.0,60674.0,0.3608]
[1728571881664,0.12,60682.0,60674.0,0.082485]
[1728571881665,0.19,60675.0,60674.0,0.082485]
[1728571882375,0.272484,60675.0,60674.0,0.082485]
[1728571882672,0.272484,60675.0,60670.0,0.08249]
[1728571882673,0.19,60675.0,60670.0,0.08249]
[1728571882874,0.082488,60672.0,60671.0,0.145489]
[1728571883070,0.082488,60672.0,60663.0,0.3608]
[1728571883071,0.082495,60668.0,60667.0,0.082494]
[1728571883276,0.19,60668.0,60664.0,0.0324]
[1728571883575,0.082499,60664.0,60663.0,0.36184]
[1728571883768,0.082499,60664.0,60663.0,0.3608]
[1728571884273,0.19,60666.0,60665.0,0.082498]
[1728571884274,0.272496,60666.0,60665.0,0.082498]
[1728571884668,0.0825,60664.0,60662.0,0.082501]
[1728571884867,0.272503,60661.0,60660.0,0.00247199]
[1728571885076,0.272503,60661.0,60660.0,0.08497599]
[1728571885876,0.19,60661.0,60660.0,0.08497599]
[1728571886271,0.19,60661.0,60660.0,0.09697599]
[1728571886470,0.272503,60661.0,60660.0,0.09697599]
[1728571887271,0.272503,60661.0,60660.0,0.01447199]
[1728571888389,0.272503,60661.0,60660.0,0.02647199]
[1728571888779,0.272503,60661.0,60660.0,0.10897599]
[1728571888989,0.443293,60669.0,60660.0,0.01647199]
[1728571888990,0.082495,60668.0,60660.0,0.01647199]
[1728571889273,0.19,60665.0,60664.0,0.082499]
[1728571890182,0.19,60673.0,60672.0,0.082488]
[1728571891769,0.276487,60673.0,60672.0,0.083488]
[1728571892881,0.282487,60673.0,60672.0,0.084488]
[1728571893781,0.2,60673.0,60672.0,0.084488]
[1728571893984,0.282487,60673.0,60672.0,0.084488]
[1728571895186,0.2,60673.0,60672.0,0.084488]
[1728571895572,0.282487,60673.0,60672.0,0.084488]
[1728571896270,0.01,60673.0,60672.0,0.084488]
[1728571896471,0.009,60673.0,60672.0,0.084488]
[1728571896877,0.199,60673.0,60672.0,0.084488]
[1728571897579,0.194,60673.0,60672.0,0.083488]
[1728571897773,1.58344,60673.0,60663.0,0.04935685]
[1728571897979,0.0825,60663.0,60662.0,0.082501]
[1728571898384,0.3608,60663.0,60662.0,0.082501]
[1728571899979,0.19,60664.0,60663.0,0.0825]
[1728571901679,0.194,60664.0,60663.0,0.0825]
[1728571902076,0.2,60664.0,60663.0,0.0835]
[1728571902584,0.196,60664.0,60663.0,0.0835]
[1728571902786,0.202,60664.0,60663.0,0.0845]
[1728571903484,0.645299,60664.0,60663.0,0.002]
[1728571903684,0.754299,60664.0,60663.0,0.002]
[1728571904287,0.564299,60664.0,60663.0,0.002]
[1728571905087,0.563299,60664.0,60663.0,0.002]
[1728571908698,0.563299,60664.0,60663.0,0.0845]
[1728571908891,0.563299,60664.0,60663.0,0.002]
[1728571911687,0.563299,60664.0,60663.0,0.0845]
[1728571911891,0.563299,60664.0,60663.0,0.002]
[1728571914897,0.924099,60664.0,60663.0,0.002]
[1728571915101,2.018619,60664.0,60663.0,0.002]
[1728571915300,2.018619,60664.0,60650.0,0.082518]
[1728571915301,0.082514,60653.0,60650.0,0.082518]
[1728571915488,0.543314,60653.0,60649.0,0.082518]
[1728571915693,0.543314,60653.0,60648.0,0.0307]
[1728571915891,0.6508,60653.0,60644.0,0.00247362]
[1728571916091,0.272925,60645.0,60644.0,0.00247362]
[1728571916399,0.372925,60645.0,60644.0,0.00247362]
[1728571917193,0.372925,60645.0,60639.0,0.0008]
[1728571917194,0.082532,60640.0,60639.0,0.0008]
[1728571917392,0.553332,60640.0,60639.0,0.0008]
[1728571918201,0.56833425,60640.0,60639.0,0.0008]
[1728571918897,0.56833425,60640.0,60639.0,0.0068]
[1728571920503,0.56833425,60640.0,60639.0,0.0128]
[1728571920998,0.56833425,60640.0,60639.0,0.095333]
[1728571921700,0.56833425,60640.0,60639.0,0.0128]
[1728571922891,0.553332,60640.0,60639.0,0.0128]
[1728571923096,0.19,60644.0,60643.0,0.082528]
[1728571923502,0.0004,60645.0,60644.0,0.082526]
[1728571923703,0.36327381,60658.0,60657.0,0.082509]
[1728571924103,0.00247381,60658.0,60657.0,0.082509]
[1728571925209,0.00247381,60658.0,60657.0,0.272509]
[1728571925606,0.01447381,60658.0,60657.0,0.273509]
[1728571925808,0.01447381,60658.0,60657.0,0.083509]
[1728571926906,0.01447381,60658.0,60657.0,0.115409]
[1728571927905,0.02047381,60658.0,60657.0,0.116409]
[1728571928303,0.01447381,60658.0,60657.0,0.115409]
[1728571928510,0.01547381,60658.0,60657.0,0.116409]
[1728571928909,0.00947381,60658.0,60657.0,0.115409]
[1728571929105,0.01547381,60658.0,60657.0,0.116409]
[1728571930215,0.006,60658.0,60657.0,0.115409]
[1728571930508,0.012,60658.0,60657.0,0.116409]
[1728571932712,0.012,60658.0,60657.0,1.211009]
[1728571933613,0.012,60658.0,60657.0,0.611009]
[1728571933821,0.012,60658.0,60657.0,0.116409]
[1728571934112,0.284507,60658.0,60657.0,0.084509]
[1728571934325,0.082525,60645.0,60644.0,0.00287333]
[1728571934616,0.082525,60645.0,60644.0,0.0004]
[1728571934617,0.392525,60645.0,60644.0,0.0004]
[1728571934916,0.272525,60645.0,60644.0,0.0004]
[1728571935703,0.372525,60645.0,60644.0,0.0004]
[1728571936107,0.867205,60645.0,60644.0,0.0004]
[1728571936307,0.372525,60645.0,60644.0,0.0004]
[1728571936506,0.868205,60645.0,60644.0,0.0074]
[1728571936706,0.082532,60640.0,60639.0,0.0008]
[1728571936924,0.753332,60640.0,60639.0,0.0008]
[1728571937217,0.753732,60640.0,60639.0,0.0008]
[1728571937617,0.633732,60640.0,60639.0,0.0008]
[1728571939013,0.5512,60640.0,60639.0,0.083333]
[1728571939211,0.0014,60640.0,60639.0,0.089333]
[1728571939416,0.0014,60640.0,60639.0,0.095333]
[1728571939417,0.0024,60640.0,60639.0,0.095333]
[1728571940929,0.0024,60640.0,60639.0,0.456133]
[1728571942120,0.1924,60640.0,60639.0,0.456133]
[1728571942617,0.19067967,60640.0,60639.0,0.456133]
[1728571942918,0.19067967,60640.0,60639.0,0.456533]
[1728571943313,0.27321167,60640.0,60639.0,0.374]
[1728571944018,0.082555,60624.0,60623.0,0.082554]
[1728571944318,0.272953,60624.0,60623.0,0.082555]
[1728571944821,0.1904,60624.0,60623.0,0.082555]
[1728571945607,0.272953,60624.0,60623.0,0.082555]
[1728571945803,0.273953,60624.0,60623.0,0.095555]
[1728571946219,0.1924,60624.0,60623.0,0.096555]
[1728571946416,0.1914,60624.0,60623.0,0.094555]
[1728571946617,0.1924,60624.0,60623.0,0.094555]
[1728571947210,0.1924,60624.0,60623.0,0.012]
[1728571947514,0.394953,60624.0,60623.0,0.012]
[1728571949316,0.393953,60624.0,60623.0,0.011]
[1728571949617,0.082556,60623.0,60620.0,0.082558]
[1728571949815,0.0004,60621.0,60620.0,0.082558]
[1728571950418,0.0004,60621.0,60615.0,0.00247406]
[1728571950614,0.272964,60616.0,60615.0,0.00247406]
[1728571951218,0.1904,60616.0,60615.0,0.00247406]
[1728571951418,0.1904,60616.0,60615.0,0.08504006]
[1728571952708,0.1914,60616.0,60615.0,0.09104006]
[1728571953815,0.1924,60616.0,60615.0,0.09104006]
[1728571954217,0.5532,60616.0,60615.0,0.09104006]
[1728571954416,0.635764,60616.0,60615.0,0.09104006]
[1728571954722,0.5532,60616.0,60615.0,0.09104006]
[1728571955419,0.5532,60616.0,60615.0,1.37596006]
[1728571955420,0.0024,60616.0,60615.0,1.37596006]
[1728571955727,0.0004,60621.0,60620.0,0.082559]
[1728571955948,0.0004,60621.0,60620.0,0.633359]
[1728571956617,0.0004,60621.0,60620.0,0.443359]
[1728571956814,0.0004,60621.0,60620.0,0.082559]
[1728571957010,0.0004,60621.0,60620.0,0.083559]
[1728571957216,0.0004,60621.0,60620.0,0.087559]
[1728571957718,0.1904,60621.0,60620.0,0.087559]
[1728571957921,0.382958,60621.0,60620.0,0.087559]
[1728571959528,0.3004,60621.0,60620.0,0.087559]
[1728571960518,0.1104,60621.0,60620.0,0.087559]
[1728571961231,0.0004,60621.0,60620.0,0.087559]
[1728571962834,0.192958,60621.0,60620.0,0.087559]
[1728571965418,0.192958,60621.0,60620.0,0.005]
[1728571965619,0.192958,60621.0,60620.0,0.087559]
[1728571965928,0.192958,60621.0,60620.0,0.005]
[1728571966131,0.192958,60621.0,60620.0,0.087559]
[1728571966728,0.192958,60621.0,60620.0,0.005]
[1728571967035,0.256058,60621.0,60620.0,0.005]
[1728571968318,0.256058,60621.0,60615.0,0.00287406]
[1728571968319,1.26838,60621.0,60615.0,0.00287406]
[1728571968525,0.272564,60616.0,60615.0,0.00287406]
[1728571968728,0.382964,60616.0,60615.0,0.08544006]
[1728571969430,0.3004,60616.0,60615.0,0.08544006]
[1728571969627,0.382964,60616.0,60615.0,0.08544006]
[1728571969935,0.0004,60616.0,60615.0,0.08544006]
[1728571970227,0.0024,60616.0,60615.0,0.09344006]
[1728571971120,0.3632,60616.0,60615.0,0.09344006]
[1728571971829,0.0024,60616.0,60615.0,0.09344006]
[1728571972326,0.755764,60616.0,60615.0,0.09344006]
[1728571972525,0.6732,60616.0,60615.0,0.09344006]
[1728571972923,0.3124,60616.0,60615.0,0.09344006]
[1728571973125,0.6732,60616.0,60615.0,0.09344006]
[1728571973421,0.3632,60616.0,60615.0,0.09344006]
[1728571973931,0.5532,60616.0,60615.0,0.09344006]
[1728571974126,0.755764,60616.0,60615.0,0.01087406]
[1728571974331,0.6732,60616.0,60615.0,0.09344006]
[1728571975033,0.755764,60616.0,60615.0,0.09344006]
[1728571976230,0.755764,60616.0,60615.0,0.01087406]
[1728571976921,0.755764,60616.0,60615.0,0.09344006]
[1728571978229,0.6732,60616.0,60615.0,0.09344006]
[1728571979038,0.755764,60616.0,60615.0,0.09344006]
[1728571980432,0.394964,60616.0,60615.0,0.09344006]
[1728571981132,0.394964,60616.0,60615.0,0.01087406]
[1728571981526,0.394964,60616.0,60615.0,0.0084]
[1728571981923,0.394964,60616.0,60615.0,0.090966]
[1728571982132,0.394964,60616.0,60615.0,0.0084]
[1728571982436,0.394964,60616.0,60615.0,0.090966]
[1728571983445,0.394964,60616.0,60615.0,0.0084]
[1728571983621,0.082578,60606.0,60602.0,0.00247489]
[1728571983827,0.563778,60606.0,60602.0,0.00247489]
[1728571984025,0.563778,60606.0,60605.0,0.082979]
[1728571984227,0.1204,60606.0,60605.0,0.082979]
[1728571984830,0.0004,60606.0,60605.0,0.275979]
[1728571985032,0.0014,60606.0,60605.0,0.275979]
[1728571985230,0.0024,60606.0,60605.0,0.276979]
[1728571985631,0.0014,60606.0,60605.0,0.273979]
[1728571985835,0.0014,60606.0,60605.0,1.370979]
[1728571986135,0.0024,60606.0,60605.0,1.371979]
[1728571988527,0.0024,60606.0,60605.0,1.43775823]
[1728571990740,0.0004,60616.0,60605.0,1.35517923]
[1728571991042,0.0004,60616.0,60615.0,0.443366]
[1728571991545,0.0004,60616.0,60615.0,0.474166]
[1728571992041,0.0014,60616.0,60615.0,0.474166]
[1728571992230,0.0014,60616.0,60615.0,0.113366]
[1728571992431,0.274964,60616.0,60615.0,0.113366]
[1728571992642,0.275964,60616.0,60615.0,0.113366]
[1728571992832,0.275964,60616.0,60615.0,0.082566]
[1728571993141,0.276964,60616.0,60615.0,0.082566]
[1728571993538,0.276964,60616.0,60610.0,0.41027608]
[1728571993735,0.276964,60616.0,60611.0,0.082571]
[1728571993736,0.272571,60612.0,60611.0,0.082571]
[1728571993936,0.392571,60612.0,60611.0,0.082571]
[1728571994545,0.082576,60609.0,60608.0,0.082573]
[1728571994840,0.272976,60609.0,60608.0,0.082573]
[1728571995030,0.382976,60609.0,60608.0,0.082573]
[1728571995233,0.41487977,60609.0,60608.0,0.082573]
[1728571995435,0.33230377,60609.0,60608.0,0.082573]
[1728571995735,0.0004,60609.0,60608.0,0.082573]
[1728571995931,0.0064,60609.0,60608.0,0.082573]
[1728571996641,0.0114,60609.0,60608.0,0.082573]
[1728571996946,0.0114,60609.0,60608.0,0.272573]
[1728571997443,0.0114,60609.0,60608.0,1.367573]
[1728571997942,0.0114,60609.0,60608.0,0.082573]
[1728571998444,0.0114,60609.0,60608.0,1.367573]
[1728571998644,0.0004,60616.0,60615.0,0.082566]
[1728572000443,0.0094,60616.0,60615.0,0.082566]
[1728572001347,0.0084,60616.0,60615.0,0.082566]
[1728572002843,0.200964,60616.0,60615.0,0.082566]
[1728572003046,0.23286333,60616.0,60615.0,0.082566]
[1728572003347,0.08257,60613.0,60612.0,0.082569]
[1728572003540,0.19,60614.0,60613.0,0.082568]
[1728572003735,0.372567,60614.0,60613.0,0.082568]
[1728572003941,0.29,60614.0,60613.0,0.082568]
[1728572004148,0.372567,60614.0,60613.0,0.082568]
[1728572004847,0.29,60614.0,60613.0,0.082568]
[1728572005052,0.1,60614.0,60613.0,0.082568]
[1728572005356,0.29,60614.0,60613.0,0.082568]
[1728572005737,0.299,60614.0,60613.0,0.083568]
[1728572006447,0.381567,60614.0,60613.0,0.083568]
[1728572006845,0.299,60614.0,60613.0,0.083568]
[1728572007546,0.009,60614.0,60613.0,0.083568]
[1728572007740,0.017,60614.0,60613.0,0.083568]
[1728572008475,0.017,60614.0,60613.0,0.443368]
[1728572008476,0.007,60614.0,60613.0,0.443368]
[1728572008750,0.013,60614.0,60613.0,0.444368]
[1728572009150,0.016,60614.0,60613.0,0.444368]
[1728572009658,0.017,60614.0,60613.0,0.444368]
[1728572011451,0.009,60614.0,60613.0,1.538288]
[1728572011955,0.001,60614.0,60613.0,1.539288]
[1728572012255,0.0004,60616.0,60615.0,0.082566]
[1728572012553,0.0004,60616.0,60615.0,0.272566]
[1728572012759,0.0004,60616.0,60615.0,0.13203552]
[1728572013152,0.082964,60616.0,60615.0,0.082566]
[1728572014853,0.082964,60616.0,60615.0,0.083566]
[1728572015049,0.272964,60616.0,60615.0,0.083566]
[1728572015650,0.278964,60616.0,60615.0,0.082566]
[1728572016052,0.285964,60616.0,60615.0,0.083566]
[1728572017760,0.2024,60616.0,60615.0,0.083566]
[1728572018262,0.284964,60616.0,60615.0,0.083566]
[1728572018555,0.285964,60616.0,60615.0,0.083566]
[1728572018758,0.286964,60616.0,60615.0,0.083566]
[1728572019059,0.2044,60616.0,60615.0,0.083566]
[1728572019260,0.0154,60616.0,60615.0,0.083566]
[1728572020147,0.0154,60616.0,60615.0,1.178486]
[1728572021269,0.0154,60616.0,60615.0,0.578486]
[1728572022459,0.0154,60616.0,60615.0,1.22795552]
[1728572022657,0.0004,60621.0,60615.0,1.178486]
[1728572022865,0.0328,60636.0,60623.0,0.082555]
[1728572023162,0.082541,60633.0,60632.0,0.08254]
[1728572023363,0.082541,60633.0,60632.0,0.44334]
[1728572023552,0.115838,60635.0,60634.0,0.08254]
[1728572024259,0.305838,60635.0,60634.0,0.08254]
[1728572024456,0.32127199,60635.0,60634.0,0.08254]
[1728572025265,0.33027199,60635.0,60634.0,0.08254]
[1728572025972,0.24773399,60635.0,60634.0,0.08254]
[1728572026158,0.25273399,60635.0,60634.0,0.08354]
[1728572026768,0.25773399,60635.0,60634.0,0.08454]
[1728572027460,0.45027199,60635.0,60634.0,0.002]
[1728572028061,0.25773399,60635.0,60634.0,0.002]
[1728572028455,0.25773399,60635.0,60634.0,0.08454]
[1728572028666,0.34027199,60635.0,60634.0,0.08454]
[1728572029364,0.25773399,60635.0,60634.0,0.08454]
[1728572029865,0.37773399,60635.0,60634.0,0.08454]
[1728572030468,0.25773399,60635.0,60634.0,0.08454]
[1728572032570,0.25773399,60635.0,60634.0,0.002]
[1728572032571,0.36773399,60635.0,60634.0,0.002]
[1728572032766,0.45027199,60635.0,60634.0,0.002]
[1728572032974,0.45027199,60635.0,60634.0,0.08454]
[1728572033181,0.44627199,60635.0,60634.0,0.08454]
[1728572033361,0.45227199,60635.0,60634.0,0.002]
[1728572033676,0.26227199,60635.0,60634.0,0.002]
[1728572033867,0.45227199,60635.0,60634.0,0.002]
[1728572035469,0.45327199,60635.0,60634.0,0.002]
[1728572035771,0.48516422,60635.0,60634.0,0.002]
[1728572035978,0.48516422,60635.0,60634.0,0.08454]
[1728572036173,0.47416422,60635.0,60634.0,0.08354]
[1728572036471,0.47416422,60635.0,60634.0,0.08454]
[1728572036472,0.48416422,60635.0,60634.0,0.08454]
[1728572037266,0.45227199,60635.0,60634.0,0.002]
[1728572037867,0.48416415,60635.0,60634.0,0.002]
[1728572038171,0.082548,60628.0,60627.0,0.082549]
[1728572038371,0.272948,60628.0,60627.0,0.082549]
[1728572038679,0.082553,60624.0,60621.0,0.082557]
[1728572038871,0.66524746,60624.0,60621.0,0.082557]
[1728572039073,0.77964088,60624.0,60622.0,0.082556]
[1728572039471,0.41884088,60624.0,60623.0,0.082955]
[1728572039774,0.66524746,60624.0,60623.0,0.082955]
[1728572040379,0.633353,60624.0,60623.0,0.0004]
[1728572040879,0.733353,60624.0,60623.0,0.0004]
[1728572041080,0.733353,60624.0,60623.0,0.0014]
[1728572041679,0.733353,60624.0,60623.0,0.0024]
[1728572042572,0.733353,60624.0,60623.0,0.0014]
[1728572042775,0.733353,60624.0,60623.0,0.0024]
[1728572042776,0.746353,60624.0,60623.0,0.0024]
[1728572043481,0.733353,60624.0,60623.0,0.0014]
[1728572043682,0.747353,60624.0,60623.0,0.0024]
[1728572044176,0.747353,60624.0,60623.0,0.0014]
[1728572044383,0.760353,60624.0,60623.0,0.0024]
[1728572044881,0.470353,60624.0,60623.0,0.084955]
[1728572045179,0.660353,60624.0,60623.0,0.0024]
[1728572045380,0.647353,60624.0,60623.0,0.083955]
[1728572045579,0.660353,60624.0,60623.0,0.084955]
[1728572046779,0.660353,60624.0,60623.0,0.0024]
[1728572046985,0.082558,60621.0,60620.0,0.0004]
[1728572047188,0.272558,60621.0,60620.0,0.0004]
[1728572047483,0.272958,60621.0,60620.0,0.0004]
[1728572047674,0.372958,60621.0,60620.0,0.0004]
[1728572048080,0.0004,60621.0,60620.0,0.082959]
[1728572048680,0.0124,60621.0,60620.0,0.116259]
[1728572050184,0.0234,60621.0,60620.0,0.117259]
[1728572050386,0.023,60621.0,60620.0,1.212139]
[1728572050578,0.0004,60628.0,60627.0,0.082549]
[1728572050777,0.0004,60628.0,60627.0,0.633349]
[1728572051481,0.0004,60628.0,60627.0,0.272549]
[1728572051880,0.0144,60628.0,60627.0,0.273549]
[1728572052083,0.115529,60642.0,60627.0,0.273549]
[1728572052084,0.44333,60641.0,60640.0,0.082532]
[1728572052275,0.3608,60641.0,60640.0,0.082532]
[1728572052783,0.01547296,60642.0,60635.0,0.19]
[1728572052784,0.01547296,60642.0,60636.0,0.033]
[1728572052983,0.55164,60647.0,60640.0,0.19]
[1728572053186,0.3608,60647.0,60646.0,0.082523]
[1728572053582,0.00247409,60648.0,60647.0,0.082522]
[1728572053991,0.27499509,60648.0,60647.0,0.082522]
[1728572054381,0.27499509,60648.0,60644.0,0.082526]
[1728572054382,0.082523,60647.0,60644.0,0.082526]
[1728572054582,0.082523,60647.0,60645.0,0.082524]
[1728572054881,0.19247409,60648.0,60640.0,0.4255]
[1728572055076,0.19247409,60648.0,60646.0,0.001]
[1728572055281,0.27499509,60648.0,60646.0,0.002]
[1728572055590,0.19247409,60648.0,60647.0,0.082522]
[1728572055983,0.27499509,60648.0,60647.0,0.082522]
[1728572056178,0.082522,60647.0,60646.0,0.002]
[1728572056488,0.19247409,60648.0,60647.0,0.082522]
[1728572057390,0.085522,60647.0,60645.0,0.083525]
[1728572057986,0.55327409,60648.0,60640.0,0.6155]
[1728572057987,0.55327409,60648.0,60646.0,0.082523]
[1728572058287,0.63879609,60648.0,60647.0,0.001]
[1728572059884,0.63879609,60648.0,60646.0,0.082523]
[1728572059885,0.003,60647.0,60646.0,0.082523]
[1728572060082,0.085522,60647.0,60646.0,0.082523]
[1728572061481,0.082522,60647.0,60646.0,0.082523]
[1728572062091,0.082522,60647.0,60646.0,0.083523]
[1728572062289,0.085522,60647.0,60646.0,0.084523]
[1728572062678,0.205522,60647.0,60646.0,0.002]
[1728572063089,0.082534,60638.0,60637.0,0.082536]
[1728572063287,0.443334,60638.0,60637.0,0.082536]
[1728572063480,0.3608,60638.0,60634.0,0.00247392]
[1728572063681,0.082538,60635.0,60634.0,0.00247392]
[1728572063881,0.182538,60635.0,60634.0,0.00247392]
[1728572064787,0.182538,60635.0,60634.0,0.08501392]
[1728572064987,0.182538,60635.0,60634.0,0.00247392]
[1728572065188,0.182538,60635.0,60634.0,0.00347392]
[1728572065592,0.1,60635.0,60634.0,0.00347392]
[1728572065786,0.182538,60635.0,60634.0,0.00347392]
[1728572065984,0.186538,60635.0,60634.0,0.00447392]
[1728572066994,0.104,60635.0,60634.0,0.08701392]
[1728572067188,0.104,60635.0,60634.0,0.00447392]
[1728572067189,0.186538,60635.0,60634.0,0.00447392]
[1728572068288,0.186538,60635.0,60634.0,0.002]
[1728572069891,0.186538,60635.0,60627.0,0.0004]
[1728572070092,0.272548,60628.0,60627.0,0.0004]
[1728572072192,0.274548,60628.0,60627.0,0.0004]
[1728572072693,0.272548,60628.0,60627.0,0.0014]
[1728572072900,0.276548,60628.0,60627.0,0.0014]
[1728572073293,0.21844195,60628.0,60627.0,0.0014]
[1728572074888,0.21444195,60628.0,60627.0,0.0004]
[1728572075195,0.21944195,60628.0,60627.0,0.0014]
[1728572075794,0.21944195,60628.0,60627.0,0.0024]
[1728572077205,0.187548,60628.0,60627.0,0.0024]
[1728572082995,0.187548,60628.0,60627.0,0.274949]
[1728572083203,0.005,60628.0,60627.0,0.274949]
[1728572083708,0.272539,60635.0,60633.0,0.082541]
[1728572083904,0.272539,60635.0,60627.0,0.0024]
[1728572083905,0.3,60635.0,60627.0,0.0024]
[1728572084109,0.082548,60628.0,60627.0,0.0014]
[1728572084319,0.082548,60628.0,60627.0,0.0024]
[1728572084500,0.082548,60628.0,60627.0,0.0014]
[1728572084701,0.005,60628.0,60627.0,0.084949]
[1728572085105,0.005,60628.0,60627.0,0.274949]
[1728572085513,0.005,60628.0,60627.0,0.273949]
[1728572086714,0.082542,60633.0,60627.0,0.1904]
[1728572086907,0.272542,60633.0,60631.0,0.082544]
[1728572087211,0.082543,60632.0,60631.0,0.082544]
[1728572087916,0.19,60633.0,60632.0,0.082543]
[1728572088212,0.19,60633.0,60627.0,0.3612]
[1728572088213,0.3608,60636.0,60635.0,0.082538]
[1728572088416,0.082542,60633.0,60631.0,0.083543]
[1728572088620,0.272543,60632.0,60631.0,0.083543]
[1728572088912,0.272543,60632.0,60631.0,0.084543]
[1728572089306,0.272543,60632.0,60631.0,0.002]
[1728572090108,0.382543,60632.0,60631.0,0.002]
[1728572090311,0.382543,60632.0,60631.0,0.001]
[1728572091421,0.382543,60632.0,60631.0,0.002]
[1728572092012,0.382543,60632.0,60617.0,0.082562]
[1728572092013,0.082548,60628.0,60617.0,0.082562]
[1728572092214,0.082548,60628.0,60615.0,0.0004]
[1728572092215,0.633758,60621.0,60615.0,0.0004]
[1728572092516,0.633758,60621.0,60616.0,0.082564]
[1728572093022,0.633758,60621.0,60617.0,0.082563]
[1728572093611,0.70609689,60621.0,60619.0,0.08256]
[1728572093815,0.70609689,60621.0,60615.0,0.0004]
[1728572094313,0.70609689,60621.0,60620.0,0.0018]
[1728572095822,0.70609689,60621.0,60620.0,0.0028]
[1728572096123,0.66565714,60621.0,60620.0,0.0028]
[1728572096512,0.77994476,60621.0,60620.0,0.0028]
[1728572096914,0.633758,60621.0,60620.0,0.0028]
[1728572100321,0.66565708,60621.0,60620.0,0.0028]
[1728572100718,0.633758,60621.0,60620.0,0.0028]
[1728572102019,0.753758,60621.0,60620.0,0.0028]
[1728572104111,0.4812,60621.0,60620.0,0.085359]
[1728572104333,0.4812,60621.0,60620.0,0.0028]
[1728572104334,0.563758,60621.0,60620.0,0.0028]
[1728572104512,0.4812,60621.0,60620.0,0.085359]
[1728572104715,0.0004,60621.0,60620.0,0.275359]
[1728572105623,0.0004,60621.0,60620.0,0.274359]
[1728572105826,0.0064,60621.0,60620.0,0.28944672]
[1728572106127,0.0134,60621.0,60620.0,0.28944672]
[1728572106523,0.0074,60621.0,60620.0,0.28944672]
[1728572107027,0.0074,60621.0,60620.0,0.09944672]
[1728572107623,0.0074,60621.0,60620.0,0.084359]
[1728572107624,0.089958,60621.0,60620.0,0.084359]
[1728572107819,0.082958,60621.0,60620.0,0.0008]
[1728572108213,0.443758,60621.0,60620.0,0.0008]
[1728572108614,0.48165712,60621.0,60620.0,0.0008]
[1728572108819,0.48165712,60621.0,60620.0,0.083359]
[1728572109120,0.04529912,60621.0,60620.0,0.084359]
[1728572109520,0.0134,60621.0,60620.0,0.084359]
[1728572109719,0.04529732,60621.0,60620.0,0.084359]
[1728572109918,0.04629714,60621.0,60620.0,0.085359]
[1728572110118,0.0144,60621.0,60620.0,0.085359]
[1728572111324,0.286958,60621.0,60620.0,0.085359]
[1728572111528,0.43885562,60621.0,60620.0,0.0028]
[1728572111716,0.407958,60621.0,60620.0,0.0028]
[1728572112432,0.43985778,60621.0,60620.0,0.0028]
[1728572112819,0.43085778,60621.0,60620.0,0.0018]
[1728572113019,0.43985778,60621.0,60620.0,0.0028]
[1728572115632,0.407958,60621.0,60620.0,0.0028]
[1728572118127,0.0154,60621.0,60620.0,0.085359]
[1728572120840,0.0154,60621.0,60620.0,0.10070093]
[1728572121729,0.2054,60621.0,60620.0,0.10070093]
[1728572121930,0.648758,60621.0,60620.0,0.0028]
[1728572122327,0.758758,60621.0,60620.0,0.0028]
[1728572122834,0.0154,60621.0,60620.0,0.085359]
[1728572123740,0.08773381,60621.0,60620.0,0.085359]
[1728572125235,0.27773381,60621.0,60620.0,0.085359]
[1728572125733,0.16143817,60621.0,60620.0,0.085359]
[1728572125936,0.16143817,60621.0,60620.0,0.275359]
[1728572125937,0.0154,60621.0,60620.0,0.275359]
[1728572126241,0.11414341,60628.0,60625.0,0.082552]
[1728572126439,0.03189174,60627.0,60626.0,0.633351]
[1728572127041,0.082543,60632.0,60626.0,0.5508]
[1728572127238,0.23681266,60635.0,60626.0,0.5508]
[1728572127432,0.0318915,60634.0,60626.0,0.5508]
[1728572127634,0.1,60634.0,60632.0,0.082542]
[1728572127833,0.1,60634.0,60633.0,0.082541]
[1728572128335,0.1318915,60634.0,60633.0,0.082541]
[1728572128737,0.1318915,60634.0,60626.0,0.36304]
[1728572128930,0.0318915,60633.0,60631.0,0.082544]
[1728572129135,0.0318915,60632.0,60631.0,0.082544]